Cogmind - Beta 14 @@@ ROGUE MODE // 2024.10.16 @ 00:28:11 Player: KURIIRI Result: Destroyed by S-27 Virus with Autogun Performance ------------- Evolutions (5) 2500 Regions Visited (20) 4000 Robots Destroyed (228) 1140 Value Destroyed (7918) 7918 Prototype IDs (78) 1560 Alien Tech Used (1) 200 Bonus (4900) 4900 TOTAL SCORE: 22218 Bonus ------- High Alert Combat Kills 415 Follower Combat Kills 2912 Network Hubs Disabled 200 Aligned with FarCom 300 Met Data Miner 300 Met Zhirov 300 Built Enhanced Grunts 300 A7 Reached Mainframe 300 Met R17 at Cetus 500 Friendly Fire -627 Cogmind --------- Core Integrity 0/1000 Matter 300/300 Energy 99/100 System Corruption 46% Temperature Cool (0) Movement Core (50) Location -4/Proximity Caves Parts ------- > --- POWER (1) -------- (None) > --- PROPULSION (5) --- (None) > --- UTILITY (8) ------ Advanced Salvage Targeting Computer > --- WEAPON (3) ------- (None) > --- INVENTORY (5) ---- Advanced System Shield Advanced Trap Extractor (6/8 Shock) Wave Gun Cooled Particle Cannon Power Sword Peak State ------------ > --- POWER ------------ Enhanced Fission Core > --- PROPULSION ------- Antigrav System Antigrav System Antigrav System Antigrav System Linear Gravjet > --- UTILITY ---------- Medium Storage Unit 0b10 Alert Chip Cloaking Device Weapon Shielding Centrium Medium Armor Plating Improved Hacking Suite Advanced Hacking Suite Advanced System Shield > --- WEAPON ----------- Shock Maul Power Sword Power Sword > --- INVENTORY -------- Advanced Transmission Jammer Improved Medium Armor Plating Improved System Shield Advanced Trap Extractor Force Rifle Cooled Particle Cannon Hypervelocity Coil Gun Improved Proton Missile Launcher Improved Remote Datajack [Rating: 97] Favorites ----------- Power Light Nuclear Core Engine Improved Deuterium Engine Power Core Light Nuclear Core Reactor Cold Fusion Reactor Propulsion Improved Gravmag System Treads Light Treads Leg Carbon-fiber Leg Wheel Armored Huge Wheel Hover Unit Improved Gravmag System Flight Unit VTOL Module Utility Hacking Suite Device Improved Heat Sink Storage Medium Storage Unit Processor 0b10 Alert Chip Hackware Hacking Suite Protection Improved Medium Armor Plating Weapon Cooled Particle Cannon Energy Gun Force Rifle Energy Cannon Cooled Particle Cannon Ballistic Gun Assault Rifle Ballistic Cannon Gauss Cannon Launcher Improved Proton Missile Launcher Impact Weapon Shock Maul Slashing Weapon Power Sword Build | -11 -10 -10 -10 -9 -8 -7 -7 -7 -7 -6 -6 -6 -6 -6 -6 -5 -5 -5 -5 -4 ------- Run | Yrd Mat Min Exi Min Mat Fac Low Low Dat Pro Fac Ext Cet Arc Hub Fac Upp Upp Zhi Pro Slots Evolved 10 | . . . . . 4 2 . . . . 2 . . . . 2 . . . . Power . | . . . . . . . . . . . . . . . . . . . . . Propulsion 3 | . . . . . 2 . . . . . 1 . . . . . . . . . Utility 6 | . . . . . 2 2 . . . . 1 . . . . 1 . . . . Weapon 1 | . . . . . . . . . . . . . . . . 1 . . . . Parts Attached 308 | 8 11 1 2 5 33 29 4 4 . 9 81 28 3 7 20 30 9 1 6 17 Power 26 | 2 . 1 . . 4 4 1 . . 1 2 5 . . . 2 1 . 2 1 Engine 13 | 2 . . . . 2 2 . . . . . 4 . . . . 1 . 1 1 Core 11 | . . 1 . . 2 2 1 . . 1 2 . . . . 2 . . . . Reactor 2 | . . . . . . . . . . . . 1 . . . . . . 1 . Propulsion 96 | 2 4 . . . 9 7 2 1 . 4 33 7 1 . 10 8 2 . . 6 Treads 29 | 2 4 . . . 9 . 2 . . . . 6 1 . 2 . 2 . . 1 Leg 16 | . . . . . . 5 . . . . 6 . . . . . . . . 5 Wheel 3 | . . . . . . 2 . . . . . . . . 1 . . . . . Hover 31 | . . . . . . . . . . 4 11 1 . . 7 8 . . . . Flight 17 | . . . . . . . . 1 . . 16 . . . . . . . . . Utility 92 | 1 4 . 2 2 8 10 1 1 . 3 20 11 1 5 2 10 3 1 4 3 Device 29 | . 1 . . 1 3 5 1 . . . 7 2 . 1 . 3 2 1 2 . Storage 14 | 1 1 . 2 . 1 . . . . . 3 2 . 1 1 . . . . 2 Processor 7 | . . . . . . 1 . . . 2 2 1 . . . 1 . . . . Hackware 13 | . . . . . 1 2 . . . 1 2 . . 3 . 3 . . 1 . Protection 29 | . 2 . . 1 3 2 . 1 . . 6 6 1 . 1 3 1 . 1 1 Artifact . | . . . . . . . . . . . . . . . . . . . . . Weapon 94 | 3 3 . . 3 12 8 . 2 . 1 26 5 1 2 8 10 3 . . 7 Energy Gun 18 | . . . . 1 6 2 . . . . 1 . . . 4 2 . . . 2 Energy Cannon 18 | . 2 . . 1 1 3 . 2 . . 5 . . . 1 1 2 . . . Ballistic Gun 8 | 3 1 . . . . . . . . . . 1 . . . . . . . 3 Ballistic Cannon 18 | . . . . 1 3 3 . . . . 8 3 . . . . . . . . Launcher 11 | . . . . . 2 . . . . . 4 1 1 . 1 . . . . 2 Special Weapon . | . . . . . . . . . . . . . . . . . . . . . Impact Weapon 9 | . . . . . . . . . . . 1 . . 1 2 4 1 . . . Slashing Weapon 12 | . . . . . . . . . . 1 7 . . 1 . 3 . . . . Piercing Weapon . | . . . . . . . . . . . . . . . . . . . . . Special Melee Weapon . | . . . . . . . . . . . . . . . . . . . . . Unidentified Prototypes 18 | . . . . . 2 3 . . . . 3 2 2 1 1 1 . . 3 . Corrupted Parts 9 | . . . . 4 . . . . . . . . . . . . . . . 5 System Corruption 51 | . . . . 14 . . . . . . . . . . . . . . . 37 Parts Lost 90 | . 2 1 . . 10 7 1 3 . 11 9 8 1 . 8 3 4 . . 22 Power 12 | . . 1 . . 3 2 . . . 2 . 2 . . 1 . 1 . . . Propulsion 36 | . 1 . . . 1 1 . 1 . 6 6 3 1 . 3 3 2 . . 8 Utility 29 | . 1 . . . 3 3 1 1 . 3 1 3 . . 4 . 1 . . 8 Weapon 13 | . . . . . 3 1 . 1 . . 2 . . . . . . . . 6 Highest Loss Streak 9 | . 2 1 . . 4 1 1 3 . 7 2 4 1 . 3 2 4 . . 9 To Critical Strikes 1 | . . . . . . . . . . 1 . . . . . . . . . . Average Slot Usage (%) 91 | . 93 91 100 100 93 90 91 86 92 87 93 98 98 93 88 88 92 94 92 68 Engine 2 | . 14 4 . . 2 2 2 . . . . 3 6 6 4 . . 5 4 1 Core 3 | . . 1 14 14 5 4 4 7 7 6 5 2 . . . 4 2 . . . Treads 11 | . 26 28 28 28 35 7 9 7 7 2 . 8 21 26 13 . 3 5 5 3 Leg 3 | . . . . . . 10 5 . . . 4 . . . . . . . . 12 Wheel 2 | . . . . . . 6 7 7 7 2 . . . . 1 2 . . . . Hover 7 | . . . . . . . . . . 16 16 24 10 . 11 19 20 17 17 4 Flight 1 | . . . . . . . . 2 7 2 9 . . . . . . . . . Device 6 | . 3 . . . 8 14 15 15 15 9 1 . 6 6 4 3 5 5 5 4 Storage 7 | . 14 14 14 14 9 7 7 7 7 6 4 6 6 6 6 5 5 5 5 4 Processor 5 | . . . . . . 2 7 7 7 7 19 8 6 6 6 5 11 11 11 5 Hackware 11 | . . . . . 7 9 7 7 7 7 16 20 20 20 18 17 17 17 17 8 Protection 7 | . 6 14 14 14 8 7 7 7 7 6 2 10 6 6 5 9 4 5 5 3 Energy Gun 1 | . . . . . 7 . . . . . 2 . . . 7 1 . . . 1 Energy Cannon 4 | . 4 14 14 14 . 6 7 15 15 13 . . . . . . . 5 5 . Ballistic Gun 2 | . 23 14 14 14 . . . . . . . . 6 6 1 . . . . 7 Ballistic Cannon 3 | . . . . . 7 6 7 . . . . 8 . . . . . . . . Impact Weapon 1 | . . . . . . . . . . . . 2 . . 3 7 4 . . . Slashing Weapon 1 | . . . . . . . . . . . 5 2 . 5 . 3 11 11 11 4 Peak Build Rating 97 | 6 10 12 14 20 33 51 52 52 50 50 69 72 79 85 88 97 95 86 89 82 Average Rating 50 | 4 7 9 13 15 30 44 50 48 50 46 56 65 70 79 77 84 86 86 85 62 On Entrance 48 | . 6 10 12 14 20 33 49 52 50 50 20 66 66 79 84 56 91 84 86 82 Naked Turns . | . . . . . . . . . . . . . . . . . . . . . Heaviest Build 74 | 11 36 38 58 42 68 74 72 68 68 68 34 52 46 45 41 46 49 41 41 37 Greatest Support 168 | 40 40 40 40 40 82 82 28 28 28 36 50 81 161 161 168 53 45 34 34 85 Greatest Overweight (x) 9 | . . . 1 1 1 4 2 2 2 3 2 9 . . 3 1 1 1 1 1 Average Overweight (x) . | . . . . . . 2 2 2 2 1 . . . . . . . 1 . . Largest Inventory Capacity 20 | 8 15 15 20 15 20 20 20 20 20 20 10 10 10 10 10 10 10 10 10 10 Average Capacity 14 | 6 8 15 15 15 19 20 20 20 20 19 9 9 10 10 10 10 10 10 10 9 Most Carried 20 | 2 8 9 14 15 20 20 20 20 20 20 10 10 10 10 10 10 10 10 10 10 Average Carried 13 | 1 5 8 12 14 17 19 19 19 20 17 8 9 10 9 8 9 9 10 9 9 Final Capacity 20 | 8 15 15 15 15 20 20 20 20 20 5 10 10 10 10 10 10 10 10 10 5 Final Carried 20 | 2 8 9 14 15 19 18 20 20 20 5 8 10 10 10 7 10 10 10 10 5 Class Distribution -------------------- 43% | Scavenger-Mutant 27% | Hacker-Mutant 16% | Mutant 5% | Hacker-Gladiator 4% | Commander-Mutant Dominant Class ---------------- Mutant | -10/Materials Mutant | -10/Mines Mutant | -10/Exiles Mutant | -9/Mines Scavenger-Mutant | -8/Materials Scavenger-Mutant | -7/Factory Scavenger-Mutant | -7/Lower Caves Scavenger-Mutant | -7/Lower Caves Scavenger-Mutant | -7/Data Miner Scavenger-Mutant | -6/Proximity Caves Hacker-Mutant | -6/Factory Hacker-Mutant | -6/Extension Commander-Mutant | -6/Cetus Hacker-Mutant | -6/Archives Hacker-Mutant | -6/Hub_04(d) Hacker-Mutant | -5/Factory Hacker-Gladiator | -5/Upper Caves Hacker-Mutant | -5/Upper Caves Hacker-Mutant | -5/Zhirov Hacker-Mutant | -4/Proximity Caves Resources | -11 -10 -10 -10 -9 -8 -7 -7 -7 -7 -6 -6 -6 -6 -6 -6 -5 -5 -5 -5 -4 ----------- Run | Yrd Mat Min Exi Min Mat Fac Low Low Dat Pro Fac Ext Cet Arc Hub Fac Upp Upp Zhi Pro Matter Collected 5839 | 163 394 67 . . 587 1161 185 25 . 45 1227 756 222 110 205 175 230 . 46 241 Remotely . | . . . . . . . . . . . . . . . . . . . . . Salvage Created 9070 | . 492 190 . . 1099 1421 161 171 . 104 1584 1204 107 257 927 508 294 . 46 505 Parts 449 | . 35 7 . . 58 89 11 12 . 10 74 36 5 17 52 14 8 . . 21 Haulers Intercepted 15 | . 2 . . . 4 3 . . . . . 4 . . 2 . . . . . Recyclers Shooed 10 | . . . . . . 4 . . . . 3 3 . . . . . . . . Parts Field Recycled . | . . . . . . . . . . . . . . . . . . . . . Retrieved Matter . | . . . . . . . . . . . . . . . . . . . . . Parts Self-Destructed 52 | . . . . . . . 10 16 . 12 . . . . . . 6 . . 8 Prevented 10 | . . . . . . . . . . . . . . . . . . . . 10 Kills | -11 -10 -10 -10 -9 -8 -7 -7 -7 -7 -6 -6 -6 -6 -6 -6 -5 -5 -5 -5 -4 ------- Run | Yrd Mat Min Exi Min Mat Fac Low Low Dat Pro Fac Ext Cet Arc Hub Fac Upp Upp Zhi Pro Combat Hostiles Destroyed 144 | . 11 5 . . 23 24 7 5 . 5 25 10 1 . 8 6 7 . . 7 Melee 18 | . 1 . . . 1 . . . . . 5 1 . . 1 3 5 . . 1 Guns 27 | . 9 1 . . 4 2 . . . . 2 . 1 . 5 1 . . . 2 Cannons 69 | . 1 4 . . 7 22 6 5 . 5 14 5 . . . . . . . . AOE 22 | . . . . . 11 . . . . . 3 2 . . 2 . . . . 4 Classes Destroyed 18 | . 5 . . . 4 5 . . . 1 . . . . 3 . . . . . Worker 10 | . . . . . 2 4 . . . . 3 . . . 1 . . . . . Builder 15 | . . . . . 2 2 . . . . 5 2 . . 3 1 . . . . Tunneler 1 | . . . . . 1 . . . . . . . . . . . . . . . Hauler 15 | . 2 . . . 4 3 . . . . . 4 . . 2 . . . . . Recycler 7 | . . . . . . 1 . . . . 4 2 . . . . . . . . Mechanic 1 | . . . . . . . . . . . . . . . 1 . . . . . Operator 16 | . 3 . . . 2 3 . . . . . . . 8 . . . . . . Drone 2 | . . . . . . . . . . 1 . . . . . . . . . 1 Watcher 18 | . 3 . . . 2 6 . . . . 1 . 1 . . 5 . . . . Swarmer 36 | . 4 . . . 5 . 4 3 . 4 13 . . . . . 3 . . . Grunt 49 | . 7 5 . . 14 6 2 . . . 5 4 . . 1 1 1 . . 3 Brawler 3 | . . . . . . 1 . . . . . . . . 1 . . . . 1 Sentry 20 | . . . . . 4 5 . 1 . . 2 4 . . 1 2 1 . . . Specialist 2 | . . . . . . . . . . . . . . . 2 . . . . . Hunter 9 | . . . . . . 2 1 . . . . 1 . . 1 . 2 . . 2 Programmer 19 | . . . . . . 8 . 1 . . 5 1 . . 1 3 . . . . Heavy 1 | . . . . . . . . . . . . . . . 1 . . . . . Cetus Guard 1 | . . . . . . . . . . . . . 1 . . . . . . . Assembled 2 | . . . . . . 2 . . . . . . . . . . . . . . Thug 2 | . . . . . 1 . . . . . . 1 . . . . . . . . Guerrilla 1 | . . . . . . . . . . . . . . . 1 . . . . . Best Kill Streak 7 | . 2 2 . . 7 4 4 2 . 4 4 4 1 2 5 1 5 . . 4 Combat Bots Only 5 | . 2 2 . . 4 4 4 2 . 4 3 3 1 . 2 1 5 . . 4 Max Kills in Single Turn 2 | . 2 1 . . 2 1 1 1 . 1 2 1 1 1 2 1 1 . . 2 Gunslinging . | . . . . . . . . . . . . . . . . . . . . . Exploded 2 | . . . . . 2 . . . . . 2 1 . . 1 . . . . 2 Melee 1 | . 1 . . . 1 . . . . . 1 1 . . 1 1 1 . . 1 Uniques/NPCs Destroyed . | . . . . . . . . . . . . . . . . . . . . . Combat | -11 -10 -10 -10 -9 -8 -7 -7 -7 -7 -6 -6 -6 -6 -6 -6 -5 -5 -5 -5 -4 -------- Run | Yrd Mat Min Exi Min Mat Fac Low Low Dat Pro Fac Ext Cet Arc Hub Fac Upp Upp Zhi Pro Hostile Shots Fired 1718 | . 76 20 . . 143 295 46 49 . 123 166 216 29 5 190 67 51 . . 242 Missed 553 | . 18 . . . 40 102 10 16 . 37 50 79 17 1 59 28 15 . . 81 Damage Taken 16019 | . 605 281 . 37 1831 1652 409 287 . 1030 1645 1449 250 90 1954 828 701 . . 2970 Core 2510 | . 83 45 . 27 166 186 80 38 . 168 312 131 . 23 247 166 128 . . 710 Absorbed by Shields 1341 | . . . . . . 280 120 104 . . . 573 85 . 179 . . . . . Redirected to Shielding 28 | . . . . . . . . . . . . . . . . 28 . . . . Regen/Repaired (Parts) 709 | . 126 . . . 195 58 . . . . 284 . . . . 46 . . . . Core Remaining (%) 51 | 100 . . . 38 69 . . . . 32 . . . . 16 . . . . . Volleys Fired 635 | . 60 14 . . 95 168 25 11 . 24 83 56 16 8 41 6 12 . . 16 Largest 2 | . 2 2 . . 2 2 2 2 . 2 2 2 2 1 2 2 1 . . 1 Hottest 160 | . 88 88 . . 124 160 78 78 . 60 128 93 73 33 160 160 90 . . 81 Shots Fired 975 | . 120 26 . . 122 249 43 22 . 48 109 100 21 8 71 8 12 . . 16 Gun 345 | . 115 14 . . 54 21 . . . . 41 3 10 8 66 4 . . . 9 Cannon 585 | . 5 12 . . 60 228 43 22 . 48 53 92 5 . 1 4 12 . . . Launcher 45 | . . . . . 8 . . . . . 15 5 6 . 4 . . . . 7 Special . | . . . . . . . . . . . . . . . . . . . . . Kinetic 475 | . 115 14 . . 58 101 25 1 . . 40 95 15 8 3 . . . . . Thermal 388 | . 5 12 . . 2 148 18 21 . 48 41 . . . 64 8 12 . . 9 Explosive 8 | . . . . . 8 . . . . . . . . . . . . . . . Electromagnetic 104 | . . . . . 54 . . . . . 28 5 6 . 4 . . . . 7 Robot Hit Streak 14 | . 9 8 . . 12 14 5 5 . 7 12 10 6 6 10 3 . . . 5 Robot Miss Streak 12 | . 6 2 . . 6 12 4 2 . 5 3 6 1 1 4 . . . . 1 Penetration Max 1 | . . . . . . 1 . . . . . . 1 . . . . . . . Secondary Targets 4 | . 3 . . . . . . . . . . . . . 1 . . . . . Max Gunslinging Chain 1 | . 1 . . . . . . . . . . . . . 1 . . . . . Shots Hit Robots 641 | . 73 16 . . 70 127 23 12 . 11 81 85 13 26 43 23 15 . 1 22 Core Hits 341 | . 28 8 . . 68 60 8 6 . 4 56 30 6 12 26 4 8 . . 17 Critical Kills 8 | . . . . . . . . . . . . 3 1 1 2 . 1 . . . Critical Parts Destroyed 19 | . . . . . . . . . . . 3 4 1 1 1 7 2 . . . Critical Strikes 58 | . . . . . 2 7 2 . . . 7 14 2 6 4 7 4 . . 3 Burn 1 | . . . . . . . . . . . . . . . . . . . . 1 Destroy 5 | . . . . . . . . . . . . 1 2 . 2 . . . . . Blast 20 | . . . . . 2 7 2 . . . 3 6 . . . . . . . . Smash 23 | . . . . . . . . . . . 3 6 . 2 2 7 3 . . . Sever 9 | . . . . . . . . . . . 1 1 . 4 . . 1 . . 2 Melee Attacks 235 | . . . . . . . . . . 1 66 25 . 20 15 64 24 . 1 19 Impact 115 | . . . . . . . . . . . 13 20 . 3 15 53 11 . . . Slashing 120 | . . . . . . . . . . 1 53 5 . 17 . 11 13 . 1 19 Piercing . | . . . . . . . . . . . . . . . . . . . . . Sneak Attacks 31 | . . . . . . . . . . . 8 3 . 16 2 2 . . . . Combat Hostiles 2 | . . . . . . . . . . . 1 . . . . 1 . . . . Follow-up Attacks 23 | . . . . . . . . . . . 1 5 . . . 7 7 . . 3 Damage Inflicted 24560 | . 851 302 . . 3488 3781 617 356 . 386 4177 3720 947 1057 1767 1213 624 . 86 1188 Guns 3979 | . 739 78 . . 843 436 . . . . 595 8 52 45 961 70 . . . 152 Cannons 9036 | . 77 206 . . 879 3238 617 356 . 383 1068 2177 35 . . . . . . . Explosions 5230 | . . . . . 1747 . . . . . 1152 495 860 . 470 . . . . 506 Melee 6115 | . . . . . . . . . . . 1362 1034 . 1006 330 1143 624 . 86 530 Ramming 200 | . 35 18 . . 19 107 . . . 3 . 6 . 6 6 . . . . . Kinetic 6726 | . 739 78 . . 879 1435 376 27 . . 868 2185 87 45 7 . . . . . Thermal 6910 | . 77 206 . . 1063 2239 241 329 . 383 723 . 344 . 1083 70 . . . 152 Explosive 649 | . . . . . 649 . . . . . . . . . . . . . . . Electromagnetic 3960 | . . . . . 878 . . . . . 1224 495 516 . 341 . . . . 506 Impact 3638 | . . . . . . . . . . . 669 867 . 360 330 1100 312 . . . Slashing 2477 | . . . . . . . . . . . 693 167 . 646 . 43 312 . 86 530 Piercing . | . . . . . . . . . . . . . . . . . . . . . Highest Corruption 46 | . . . . 14 1 4 . . . . 4 1 . . 5 . . . . 46 Average Corruption 3 | . . . . 6 1 2 . . . . 2 1 . . 3 . . . . 28 Corruption Purged 8 | . . . . . . 4 . . . . 3 1 . . . . . . . . Corruption Blocked . | . . . . . . . . . . . . . . . . . . . . . Effects 139 | . . . . 4 8 44 . . . . 38 8 . . 6 . . . . 31 Message Errors 25 | . . . . 2 1 10 . . . . 7 1 . . 2 . . . . 2 Matter Fused 45 | . . . . 1 2 16 . . . . 16 . . . 2 . . . . 8 Heat Flow Errors 18 | . . . . 1 . 5 . . . . 6 1 . . 1 . . . . 4 Energy Discharges 19 | . . . . . 4 6 . . . . 2 2 . . . . . . . 5 Parts Rejected 1 | . . . . . . . . . . . . . . . 1 . . . . . Parts Fused 1 | . . . . . . . . . . . . . . . . . . . . 1 Data Loss (minor) 15 | . . . . . 1 3 . . . . 3 3 . . . . . . . 5 Data Loss (major) 7 | . . . . . . 1 . . . . 3 1 . . . . . . . 2 Misfires 3 | . . . . . . 2 . . . . 1 . . . . . . . . . Misdirections 4 | . . . . . . . . . . . . . . . . . . . . 4 Weapon Failures 1 | . . . . . . 1 . . . . . . . . . . . . . . Overload Shots 14 | . . . . . . 6 . . . . . . . . . 3 5 . . . Overflow Damage 2808 | . . . . . 85 170 24 . . 48 686 321 9 235 286 712 118 . 69 45 Projectiles 313 | . . . . . . 159 24 . . 48 23 59 . . . . . . . . Explosions 222 | . . . . . 85 . . . . . 79 . 9 . 20 . . . . 29 Melee 2273 | . . . . . . 11 . . . . 584 262 . 235 266 712 118 . 69 16 Knockbacks 46 | . . . . . 8 9 1 . . . 13 10 . 1 1 3 . . . . Impact 9 | . . . . . . 1 . . . . 1 2 . 1 1 3 . . . . Kinetic 35 | . . . . . 7 8 1 . . . 11 8 . . . . . . . . Secondary 2 | . . . . . 1 . . . . . 1 . . . . . . . . . Self-Inflicted Damage 394 | . . . . . 283 47 . . . . . . . . 9 . . . . 55 Shots 11 | . . . . . 8 . . . . . . . . . 1 . . . . 2 Rammed 36 | . 13 4 . . 4 10 . . . 1 . 1 . 1 2 . . . . . Targets Rammed 38 | . 13 4 . . 5 11 . . . 1 . 1 . 1 2 . . . . . Kicked . | . . . . . . . . . . . . . . . . . . . . . Crushed 2 | . . . . . 1 1 . . . . . . . . . . . . . . Highest Temperature 469 | . 81 319 . 212 300 371 . . . . 330 413 . . 469 190 184 . . 270 Average Temperature 88 | . 15 122 . 113 83 98 . . . . 72 104 . . 160 54 68 . . 78 Received Heat Transfer 4097 | . 276 174 . . 810 457 57 29 . 78 195 1348 9 9 224 72 117 . . 242 Effects 13 | . . . . . 1 1 . . . . 1 3 . . 6 . . . . 1 Shutdowns 1 | . . . . . . . . . . . . . . . 1 . . . . . Energy Bleed 7 | . . . . . . 1 . . . . 1 1 . . 3 . . . . 1 Interference 5 | . . . . . 1 . . . . . . 2 . . 2 . . . . . Siege Activations . | . . . . . . . . . . . . . . . . . . . . . Robots Corrupted 19 | . . . . . . . . . . . 2 4 . 2 1 8 2 . . . Combat Hostiles 7 | . . . . . . . . . . . 1 2 . . . 2 2 . . . Parts Fried 42 | . . . . . 4 . . . . . 11 5 1 2 1 10 7 . . 1 Impact Corruptions 60 | . . . . . . 1 . . . . 9 8 . 9 4 23 6 . . . Robots Melted 1 | . . . . . . . 1 . . . . . . . . . . . . . Combat Hostiles 1 | . . . . . . . 1 . . . . . . . . . . . . . Parts Melted 18 | . . 2 . . . 5 . . . . 1 1 . . 9 . . . . . Heat Transferred 9908 | . 148 370 . . 850 3708 333 444 . 518 1350 . 150 . 1630 111 . . . 296 Parts Sabotaged . | . . . . . . . . . . . . . . . . . . . . . Parts Stolen . | . . . . . . . . . . . . . . . . . . . . . Parts Stripped . | . . . . . . . . . . . . . . . . . . . . . Power Chain Reactions 11 | . . . . . 7 . . . . . 1 . 1 . 2 . . . . . Alert | -11 -10 -10 -10 -9 -8 -7 -7 -7 -7 -6 -6 -6 -6 -6 -6 -5 -5 -5 -5 -4 ------- Run | Yrd Mat Min Exi Min Mat Fac Low Low Dat Pro Fac Ext Cet Arc Hub Fac Upp Upp Zhi Pro Peak Influence 887 | . 162 174 . . 603 463 . . . . 887 326 340 190 713 331 . . . . Initial 785 | . . 54 . . . 245 . . . . 785 133 121 56 5 74 . . . . Average 188 | . 92 35 . . 276 117 . . . . 464 97 227 140 364 86 . . . . Maximum Alert Level 3 | . . . . . 2 2 . . . . 3 1 1 . 3 1 . . . . Low Security (%) 66 | 100 100 100 . 100 40 86 . . . . 7 88 15 100 23 84 . . . . Level 1 19 | . . . . . 33 13 . . . . 36 11 84 . 32 15 . . . . Level 2 11 | . . . . . 25 . . . . . 43 . . . 43 . . . . . Level 3 2 | . . . . . . . . . . . 13 . . . . . . . . . Level 4 . | . . . . . . . . . . . . . . . . . . . . . Level 5 . | . . . . . . . . . . . . . . . . . . . . . High Security . | . . . . . . . . . . . . . . . . . . . . . Max Security . | . . . . . . . . . . . . . . . . . . . . . Squads Dispatched 67 | . 3 . . . 5 18 . . . . 17 3 . . 15 6 . . . . Investigation 31 | . 1 . . . 3 8 . . . . 9 3 . . 3 4 . . . . Extermination 13 | . . . . . . 5 . . . . 4 . . . 2 2 . . . . Reinforcement 19 | . 2 . . . 2 2 . . . . 4 . . . 9 . . . . . Assault 1 | . . . . . . . . . . . . . . . 1 . . . . . Garrison 3 | . . . . . . 3 . . . . . . . . . . . . . . Intercept . | . . . . . . . . . . . . . . . . . . . . . Searches Triggered 3 | . . . . . . . . . . . 3 . . . . . . . . . Data Miner Redirects 9 | . . . . . . . . . . . 3 . . . 3 3 . . . . Construction Impeded 4 | . . . . . 1 1 . . . . 2 . . . . . . . . . Haulers Reinforced 4 | . . . . . . 1 . . . . 1 . . . 2 . . . . . Active Scanning Responses . | . . . . . . . . . . . . . . . . . . . . . Cargo Convoy Interrupts 1 | . . . . . . . . . . . . . . . . 1 . . . . Stealth | -11 -10 -10 -10 -9 -8 -7 -7 -7 -7 -6 -6 -6 -6 -6 -6 -5 -5 -5 -5 -4 --------- Run | Yrd Mat Min Exi Min Mat Fac Low Low Dat Pro Fac Ext Cet Arc Hub Fac Upp Upp Zhi Pro Distress Signals 19 | . 1 . . . 3 1 . . . 2 3 2 2 . 3 2 . . . . Communications Jammed 2 | . . . . . . . . . . . . . . . . . . . . 2 Distress Signals . | . . . . . . . . . . . . . . . . . . . . . Times Spotted 375 | . 20 6 . . 42 47 10 10 . 15 58 36 8 19 40 29 13 . . 22 Peak Tracking Total 12 | . 4 2 . . 6 5 4 3 . 6 6 5 5 2 10 12 5 . . 9 Tactical Retreats 31 | . 3 . . . 2 4 . 2 . 1 5 . . . 4 5 2 . . 3 Traps | -11 -10 -10 -10 -9 -8 -7 -7 -7 -7 -6 -6 -6 -6 -6 -6 -5 -5 -5 -5 -4 ------- Run | Yrd Mat Min Exi Min Mat Fac Low Low Dat Pro Fac Ext Cet Arc Hub Fac Upp Upp Zhi Pro Traps Triggered 9 | . 1 . . . 1 2 . . . . 2 1 . . 1 1 . . . . Indirectly . | . . . . . . . . . . . . . . . . . . . . . Trap Hack Attempts . | . . . . . . . . . . . . . . . . . . . . . Triggered . | . . . . . . . . . . . . . . . . . . . . . Disarmed . | . . . . . . . . . . . . . . . . . . . . . Reprogrammed 6 | . . . . . . . . . . . . . . . . 6 . . . . Reused . | . . . . . . . . . . . . . . . . . . . . . Traps Extracted 6 | . . . . . . . . . . . . . . . . 6 . . . . Installed . | . . . . . . . . . . . . . . . . . . . . . Triggered . | . . . . . . . . . . . . . . . . . . . . . Most Traps Carried 6 | . . . . . . . . . . . . . . . . 6 6 6 6 6 Machines | -11 -10 -10 -10 -9 -8 -7 -7 -7 -7 -6 -6 -6 -6 -6 -6 -5 -5 -5 -5 -4 ---------- Run | Yrd Mat Min Exi Min Mat Fac Low Low Dat Pro Fac Ext Cet Arc Hub Fac Upp Upp Zhi Pro Machines Disabled 36 | . . . . . 14 12 . . . . 2 2 1 3 2 . . . . . Max in Single Turn 4 | . . . . . 4 4 . . . . 1 1 . . . . . . . . Garrison Access 5 | . . . . . . 3 . . . . 1 . . . . 1 . . . . Network Hub 1 | . . . . . . . . . . . . . . . 1 . . . . . Machines Repaired . | . . . . . . . . . . . . . . . . . . . . . Machines Dismantled . | . . . . . . . . . . . . . . . . . . . . . Machines Sabotaged 1 | . . . . . . . . . . . . . . . 1 . . . . . Overloaded Fab Kills . | . . . . . . . . . . . . . . . . . . . . . Hacking | -11 -10 -10 -10 -9 -8 -7 -7 -7 -7 -6 -6 -6 -6 -6 -6 -5 -5 -5 -5 -4 --------- Run | Yrd Mat Min Exi Min Mat Fac Low Low Dat Pro Fac Ext Cet Arc Hub Fac Upp Upp Zhi Pro Machines Accessed 112 | . 7 . 2 2 6 25 . . 4 . 23 9 3 . 6 16 . . 8 1 Terminals 63 | . 6 . . 1 5 13 . . . . 13 7 3 . 6 8 . . . 1 Fabricators 8 | . . . . . . 2 . . . . 4 . . . . 2 . . . . Repair Stations 8 | . 1 . . . 1 2 . . . . 2 . . . . 2 . . . . Recycling Units 8 | . . . . . . 2 . . . . 2 2 . . . 2 . . . . Scanalyzers 5 | . . . . . . 3 . . . . 1 . . . . 1 . . . . Garrison Access 5 | . . . . . . 3 . . . . 1 . . . . 1 . . . . Total Hacks 420 | . 30 . 5 6 23 71 . . 30 . 76 36 10 . 19 66 . . 47 1 Successful 273 | . 14 . 5 2 14 43 . . 30 . 42 18 4 . 11 42 . . 47 1 Failed 146 | . 15 . . 4 9 28 . . . . 34 18 6 . 8 24 . . . . Catastrophic 19 | . 1 . . 1 2 3 . . . . 3 3 . . 1 5 . . . . Database Lockouts 1 | . 1 . . . . . . . . . . . . . . . . . . . Manual 187 | . 22 . 1 5 17 40 . . . . 40 19 1 . 15 27 . . . . Terminals 234 | . 25 . . 5 20 42 . . . . 43 30 10 . 19 39 . . . 1 Fabricators 27 | . . . . . . 7 . . . . 12 . . . . 8 . . . . Repair Stations 25 | . 5 . . . 3 5 . . . . 6 . . . . 6 . . . . Recycling Units 22 | . . . . . . 3 . . . . 7 6 . . . 6 . . . . Scanalyzers 18 | . . . . . . 8 . . . . 7 . . . . 3 . . . . Garrison Access 11 | . . . . . . 6 . . . . 1 . . . . 4 . . . . Terminal Hacks 173 | . 6 . 5 2 7 18 . . 30 . 15 11 4 . 6 21 . . 47 1 Record 57 | . . . 4 . . . . . 11 . . . 3 . . 3 . . 35 1 Part Schematic 26 | . . . . . . 2 . . 11 . 5 . . . . 4 . . 4 . Robot Schematic 5 | . . . . . . . . . 5 . . . . . . . . . . . Robot Analysis 15 | . 2 . . 1 2 2 . . . . 1 2 . . . 1 . . 4 . Prototype ID Bank 18 | . 2 . . . 1 2 . . 3 . 1 1 . . 1 3 . . 4 . Open Door 2 | . . . . 1 . . . . . . . . 1 . . . . . . . Level Access Points 1 | . . . . . . . . . . . . . . . . 1 . . . . Branch Access Points 3 | . . . . . . 1 . . . . 1 . . . . 1 . . . . Terminal Index 4 | . 1 . . . 1 1 . . . . . . . . . 1 . . . . Fabricator Index 2 | . . . . . . . . . . . 1 . . . . 1 . . . . Recycling Unit Index 1 | . . . . . . 1 . . . . . . . . . . . . . . Alert Level 1 | . . . . . . 1 . . . . . . . . . . . . . . Unreport Threat 15 | . . . . . . 4 . . . . 4 3 . . 3 1 . . . . Locate Traps 13 | . 1 . . . 2 1 . . . . 1 5 . . 2 1 . . . . Reprogram Traps 1 | . . . . . . . . . . . . . . . . 1 . . . . Recall Reinforcements 1 | . . . . . . 1 . . . . . . . . . . . . . . Zone Layout 7 | . . . . . 1 2 . . . . 1 . . . . 3 . . . . Derelict Proto ID Bank 1 | . . . 1 . . . . . . . . . . . . . . . . . Fabricator Hacks 15 | . . . . . . 3 . . . . 7 . . . . 5 . . . . Load Schematic 8 | . . . . . . 2 . . . . 4 . . . . 2 . . . . Build 7 | . . . . . . 1 . . . . 3 . . . . 3 . . . . Repair Station Hacks 20 | . 4 . . . 2 4 . . . . 6 . . . . 4 . . . . Scan Component 10 | . 2 . . . 1 2 . . . . 3 . . . . 2 . . . . Repair 10 | . 2 . . . 1 2 . . . . 3 . . . . 2 . . . . Recycling Unit Hacks 1 | . . . . . . . . . . . . . . . . 1 . . . . Retrieve Components 1 | . . . . . . . . . . . . . . . . 1 . . . . Scanalyzer 10 | . . . . . . 3 . . . . 4 . . . . 3 . . . . Insert Component 4 | . . . . . . 1 . . . . 2 . . . . 1 . . . . Analyze 6 | . . . . . . 2 . . . . 2 . . . . 2 . . . . Garrison Access Hacks 5 | . . . . . . 3 . . . . 1 . . . . 1 . . . . Seal Access 4 | . . . . . . 3 . . . . 1 . . . . . . . . . Coupler Status 1 | . . . . . . . . . . . . . . . . 1 . . . . Unauthorized Hacks 49 | . 4 . . . 5 12 . . . . 9 7 . . 5 7 . . . . Terminals 33 | . 4 . . . 5 7 . . . . 6 3 . . 5 3 . . . . Assimilate 7 | . . . . . 1 2 . . . . 2 . . . . 2 . . . . Botnet 18 | . 3 . . . 3 4 . . . . 3 2 . . 2 1 . . . . Disrupt 1 | . . . . . . . . . . . . 1 . . . . . . . . Operators 4 | . 1 . . . 1 1 . . . . 1 . . . . . . . . . Sabotage 3 | . . . . . . . . . . . . . . . 3 . . . . . Fabricators . | . . . . . . . . . . . . . . . . . . . . . Repair Stations . | . . . . . . . . . . . . . . . . . . . . . Recycling Units 10 | . . . . . . 1 . . . . 2 4 . . . 3 . . . . Reject 4 | . . . . . . . . . . . 1 2 . . . 1 . . . . Mask 6 | . . . . . . 1 . . . . 1 2 . . . 2 . . . . Scanalyzers 4 | . . . . . . 3 . . . . 1 . . . . . . . . . Extract 4 | . . . . . . 3 . . . . 1 . . . . . . . . . Garrison Access 2 | . . . . . . 1 . . . . . . . . . 1 . . . . Watchers 1 | . . . . . . 1 . . . . . . . . . . . . . . Jam 1 | . . . . . . . . . . . . . . . . 1 . . . . Data Cores Recovered 2 | . . . . . . 1 . . . . . 1 . . . . . . . . Used 2 | . . . . . . 1 . . . . . 1 . . . . . . . . Hacking Detections 77 | . 7 . . 1 6 18 . . . . 19 8 3 . 5 10 . . . . Full Trace Events 28 | . 5 . . 1 3 5 . . . . 8 3 . . . 3 . . . . Feedback Events . | . . . . . . . . . . . . . . . . . . . . . Feedback Blocked 1 | . . . . . . . . . . . . 1 . . . . . . . . Robot Schematics Acquired 5 | . . . . . . . . . 5 . . . . . . . . . . . Robots Built . | . . . . . . . . . . . . . . . . . . . . . Authchips . | . . . . . . . . . . . . . . . . . . . . . Time . | . . . . . . . . . . . . . . . . . . . . . Total Robot Build Rating . | . . . . . . . . . . . . . . . . . . . . . Part Schematics Acquired 53 | . . . . . . 20 . . 11 . 13 . . . . 5 . . 4 . Parts Built 10 | . . . . . . 1 . . . . 3 . . . . 6 . . . . Authchips . | . . . . . . . . . . . . . . . . . . . . . Time 499 | . . . . . . 116 . . . . 237 . . . . 146 . . . . Total Part Build Rating 54 | . . . . . . 3 . . . . 13 . . . . 38 . . . . Parts Repaired 9 | . 2 . . . 1 2 . . . . 3 . . . . 1 . . . . Time 298 | . 26 . . . 19 33 . . . . 96 . . . . 124 . . . . Parts Recycled . | . . . . . . . . . . . . . . . . . . . . . Recycled Matter . | . . . . . . . . . . . . . . . . . . . . . Retrieved Matter . | . . . . . . . . . . . . . . . . . . . . . Retrieved Components 3 | . . . . . . . . . . . . . . . . 3 . . . . Parts Scanalyzed 4 | . . . . . . 1 . . . . 2 . . . . 1 . . . . Part Schematics Acquired 4 | . . . . . . 1 . . . . 2 . . . . 1 . . . . Parts Damaged . | . . . . . . . . . . . . . . . . . . . . . Bothacking | -11 -10 -10 -10 -9 -8 -7 -7 -7 -7 -6 -6 -6 -6 -6 -6 -5 -5 -5 -5 -4 ------------ Run | Yrd Mat Min Exi Min Mat Fac Low Low Dat Pro Fac Ext Cet Arc Hub Fac Upp Upp Zhi Pro Used RIF Installer . | . . . . . . . . . . . . . . . . . . . . . Robots Hacked . | . . . . . . . . . . . . . . . . . . . . . Non-combat . | . . . . . . . . . . . . . . . . . . . . . Combat . | . . . . . . . . . . . . . . . . . . . . . Robot Hacks Applied . | . . . . . . . . . . . . . . . . . . . . . Relay Couplers Released 2 | . . . . . . 2 . . . . . . . . . . . . . . Machine Destruction 2 | . . . . . . 2 . . . . . . . . . . . . . . Fabnet Peak Effective % . | . . . . . . . . . . . . . . . . . . . . . Robots Rewired 14 | . . . . . . . . . . . . 14 . . . . . . . . Allies Hacked 4 | . . . . . . . . . . . 2 1 . . . 1 . . . . Hacks Repelled 2 | . . . . . . . . . . . . . . . . 2 . . . . Allies | -11 -10 -10 -10 -9 -8 -7 -7 -7 -7 -6 -6 -6 -6 -6 -6 -5 -5 -5 -5 -4 -------- Run | Yrd Mat Min Exi Min Mat Fac Low Low Dat Pro Fac Ext Cet Arc Hub Fac Upp Upp Zhi Pro Total Allies 38 | . . 3 . . 1 2 . . . 1 5 16 5 . 3 2 . . . . Largest Group 14 | . . 3 2 2 2 1 1 1 . 1 4 12 14 13 6 2 . . . . Highest-Rated Group 865 | . . 40 24 24 24 10 10 10 . 96 117 486 865 829 443 36 . . . . Highest-Rated Ally 159 | . . 16 16 16 16 10 10 10 . 96 31 159 159 159 96 26 . . . . Total Orders 35 | . . 4 . . . 12 7 . . . . . 2 . . 9 1 . . . STAY 19 | . . 3 . . . 6 4 . . . . . 1 . . 5 . . . . FOLLOW 15 | . . 1 . . . 6 3 . . . . . 1 . . 4 . . . . EXPLORE 1 | . . . . . . . . . . . . . . . . . 1 . . . Ally Attacks 389 | . . 7 . . 20 . . . . 8 81 151 35 33 54 . . . . . Total Damage 9383 | . . 96 . . 209 . . . . 234 1339 3504 832 1048 2121 . . . . . Kills 77 | . . 2 . . 2 . . . . 3 13 27 8 6 16 . . . . . Allies Corrupted . | . . . . . . . . . . . . . . . . . . . . . Allies Melted . | . . . . . . . . . . . . . . . . . . . . . Intel | -11 -10 -10 -10 -9 -8 -7 -7 -7 -7 -6 -6 -6 -6 -6 -6 -5 -5 -5 -5 -4 ------- Run | Yrd Mat Min Exi Min Mat Fac Low Low Dat Pro Fac Ext Cet Arc Hub Fac Upp Upp Zhi Pro Robot Analysis Total 15 | . 2 . . 1 2 2 . . . . 1 2 . . . 1 . . 4 . Derelict Logs Recovered 5 | . . 1 . . . . . 2 . 1 . . . . . . . . . 1 Drone Launches 3 | . . . . . . . . . . . . . . . . . 3 . . . Drone Recoveries . | . . . . . . . . . . . . . . . . . . . . . Exploration | -11 -10 -10 -10 -9 -8 -7 -7 -7 -7 -6 -6 -6 -6 -6 -6 -5 -5 -5 -5 -4 ------------- Run | Yrd Mat Min Exi Min Mat Fac Low Low Dat Pro Fac Ext Cet Arc Hub Fac Upp Upp Zhi Pro Turns Passed 22068 | 91 1077 1100 385 353 1822 5446 660 412 114 514 3013 1799 417 425 818 2184 472 82 217 667 Spaces Moved 14522 | 52 501 645 234 188 684 2816 446 278 88 255 2947 1071 215 205 577 2256 380 57 155 472 Core 181 | 4 . . . . . . . . . 41 87 4 . . . . . . . 45 Treads 3714 | 48 501 645 234 188 684 292 . . . . . 389 215 205 184 . 45 . . 84 Legs 412 | . . . . . . 9 . . . . 110 . . . . . . . . 293 Wheels 3498 | . . . . . . 2515 446 278 88 129 . . . . 42 . . . . . Hover 5828 | . . . . . . . . . . 85 1861 678 . . 351 2256 335 57 155 50 Flight 889 | . . . . . . . . . . . 889 . . . . . . . . . Fastest Speed 24 | 50 160 160 160 160 155 130 130 130 130 50 24 44 160 160 48 40 48 142 72 50 Average Speed 107 | 151 160 160 162 183 159 142 130 130 130 110 59 104 160 160 94 57 81 142 125 115 Slowest Speed 500 | 160 160 160 240 240 240 400 130 130 130 236 197 500 160 160 180 111 240 142 142 240 Overloaded Moves . | . . . . . . . . . . . . . . . . . . . . . Propulsion Burnouts . | . . . . . . . . . . . . . . . . . . . . . Robots Hopped 12 | . . . . . . . . . . . 12 . . . . . . . . . Cave-ins Triggered . | . . . . . . . . . . . . . . . . . . . . . Exploration Rate (%) 58 | 5 81 92 60 36 59 61 63 52 74 38 66 98 83 90 52 40 65 12 61 46 Regions Visited 20 Branch Regions 15 Pre-discovered Areas 8 | . . 2 1 . . . . 1 1 . . . . . . . . . 3 . Known Exits Taken 3 | . . . . . . 1 . . . . 1 . . . . 1 . . . . Unknown Exits Taken 17 | 1 1 1 1 1 1 . 1 1 1 1 . 1 1 1 1 . 1 1 1 . Scrap Searched 10 | . . 1 . . . . 1 2 . 2 . . . . . . 4 . . . Spaces Dug 123 | . . . . . 5 26 . . . 6 37 1 . . 9 30 9 . . . Terrain Destroyed 398 | . . . . . 127 88 11 4 . 21 46 17 19 . 22 31 12 . . . Melee 73 | . . . . . . . . . . . 35 . . . 9 27 2 . . . Projectile 157 | . . . . . 20 59 11 4 . 21 7 17 4 . . 4 10 . . . AOE 168 | . . . . . 107 29 . . . . 4 . 15 . 13 . . . . . Terrain Rammed . | . . . . . . . . . . . . . . . . . . . . . Walls Destroyed . | . . . . . . . . . . . . . . . . . . . . . Machines Disabled . | . . . . . . . . . . . . . . . . . . . . . Actions | -11 -10 -10 -10 -9 -8 -7 -7 -7 -7 -6 -6 -6 -6 -6 -6 -5 -5 -5 -5 -4 --------- Run | Yrd Mat Min Exi Min Mat Fac Low Low Dat Pro Fac Ext Cet Arc Hub Fac Upp Upp Zhi Pro Total 19587 | 60 665 684 239 196 1282 4002 483 307 87 438 3958 1610 266 255 746 3032 497 57 174 549 Wait 3532 | . 60 20 . . 451 932 5 7 . 142 719 324 30 4 79 662 78 . 7 12 Move 14478 | 51 500 644 233 187 683 2815 445 277 87 254 2922 1070 214 204 576 2255 379 56 154 472 Hop 12 | . . . . . . . . . . . 12 . . . . . . . . . Pick Up 129 | 1 11 1 4 2 8 18 2 5 . . 29 16 1 5 3 13 2 . 1 7 Fast Attach 131 | 6 7 1 . 1 13 19 2 1 . . 30 11 1 1 7 12 5 . 2 12 Attach 53 | . . . . . 5 2 1 2 . 9 14 2 . . 6 8 1 . . 3 Detach 24 | . . . . . 1 1 . . . 3 11 1 . . 2 4 . . 1 . Swap 126 | 2 4 . 2 4 15 9 1 1 . . 37 15 2 6 7 10 3 1 5 2 Drop 154 | . 10 . . 2 6 27 2 3 . 4 36 21 2 6 8 11 3 . 3 10 Fire 635 | . 60 14 . . 95 168 25 11 . 24 83 56 16 8 41 6 12 . . 16 Melee 201 | . . . . . . . . . . 1 64 20 . 20 15 51 14 . 1 15 Ram 11 | . . . . . . 9 . . . . . . . . 2 . . . . . Kick . | . . . . . . . . . . . . . . . . . . . . . Crush 27 | . 13 4 . . 5 2 . . . 1 . 1 . 1 . . . . . . Escape Stasis . | . . . . . . . . . . . . . . . . . . . . . Rewire 74 | . . . . . . . . . . . 1 73 . . . . . . . . Trap . | . . . . . . . . . . . . . . . . . . . . . Miscellaneous . | . . . . . . . . . . . . . . . . . . . . . Route ------- -11/Scrapyard -10/Materials (discovered 4 exits: [*Mat x2] / [*Min] / [*Sub]) -10/Mines (discovered 3 exits: [*Mat x2] / *Exi) -10/Exiles -9/Mines -8/Materials -7/Factory (discovered 4 exits: *Fac x2 / *Low x2) -7/Lower Caves -7/Lower Caves (discovered 2 exits: *Fac / *Dat) -7/Data Miner -6/Proximity Caves -6/Factory (discovered 5 exits: *Fac / *Low x2 / *Ext x2) -6/Extension (discovered 2 exits: *Fac / *Cet) -6/Cetus (discovered 2 exits: *Fac / *Arc) -6/Archives (discovered 3 exits: *Fac / *Hub x2) -6/Hub_04(d) (discovered 3 exits: *Fac x3) -5/Factory (discovered 6 exits: *Fac x4 / *Upp x2) -5/Upper Caves -5/Upper Caves -5/Zhirov -4/Proximity Caves History --------- Turn | Location | Event 2 | -11/Scrapyard | Discovered new exit (range 16) 92 | -11/Scrapyard | Entered Materials 302 | -10/Materials | Build established: Mutant 408 | -10/Materials | Discovered new exit (range 8) 649 | -10/Materials | Discovered new exit (range 7) 657 | -10/Materials | Central database locked down 749 | -10/Materials | Discovered new exit (range 8) 932 | -10/Materials | Discovered new exit (range 15) 1033 | -10/Materials | Repaired Assault Rifle 1048 | -10/Materials | Repaired Lgt. Treads 1169 | -10/Materials | Entered Mines 1295 | -10/Mines | Learned location of Storage (-9) 1490 | -10/Mines | Core integrity fell below 50% 1501 | -10/Mines | Discovered new exit (range 8) 1583 | -10/Mines | Assisted by bots powering up and referring to "LRC-V3" 1633 | -10/Mines | Deemed a non-threat by the Exiles lab entrance 1634 | -10/Mines | Discovered new exit (range 5) 1671 | -10/Mines | Discovered new exit (range 10) 2269 | -10/Mines | Entered Exiles 2269 | -10/Exiles | Accompanied by 2 allies 2314 | -10/Exiles | Met 8R-AWN 2336 | -10/Exiles | Met EX-HEX 2383 | -10/Exiles | Met EX-BIN 2402 | -10/Exiles | Aligned with FarCom system 2404 | -10/Exiles | Given EX-Vault access code 2440 | -10/Exiles | Opened EX-Vault 2448 | -10/Exiles | Found 0b10 Alert Chip 2478 | -10/Exiles | Warned to stay clear of 0b10 Research branches 2525 | -10/Exiles | Met EX-DEC 2547 | -10/Exiles | Learned location of Zion (-6) 2633 | -10/Exiles | Discovered new exit (range 14) 2654 | -10/Exiles | Left Exiles lab with 0b10 Alert Chip 2654 | -10/Exiles | Entered Mines 2654 | -9/Mines | Accompanied by 2 allies 2710 | -9/Mines | Discovered new exit (range 7) 2860 | -9/Mines | Met a Derelict who couldn't figure out how to use a Trap Extractor 3005 | -9/Mines | System corruption reached 10% 3007 | -9/Mines | Entered Materials 3007 | -8/Materials | Accompanied by 2 allies 3007 | -8/Materials | Evolved 4 slots: Propulsion x2, Utility x2 3522 | -8/Materials | Build established: Scavenger-Mutant 3636 | -8/Materials | Lost 4 parts (1p2u1w) 3791 | -8/Materials | Repaired Arm. Treads 4412 | -8/Materials | Discovered new exit (range 6) 4521 | -8/Materials | Lost 3 parts (1p1u1w) 4829 | -8/Materials | Entered Factory 4829 | -7/Factory | Accompanied by 1 ally 4829 | -7/Factory | Evolved 2 slots: Utility x2 5425 | -7/Factory | P-60 Hacker assimilated allied Technician 3a 6198 | -7/Factory | Repaired Imp. Heat Sink 6436 | -7/Factory | Discovered new exit (range 11) 8014 | -7/Factory | Discovered new exit (range 15) 8613 | -7/Factory | Assembled infested ambush trap array 8634 | -7/Factory | Garrison activated, responded to threat 8720 | -7/Factory | Repaired Recalibrator 9218 | -7/Factory | Identified exit to Lower Caves 9281 | -7/Factory | Fabricated Aerolev Unit? 10275 | -7/Factory | Entered Lower Caves 10275 | -7/Lower Caves | Accompanied by 1 ally 10894 | -7/Lower Caves | Discovered new exit (range 12) 10935 | -7/Lower Caves | Entered another Lower Caves area 10935 | -7/Lower Caves | Accompanied by 1 ally 10937 | -7/Lower Caves | Attracted the attention of an 0b10 checkpoint 10968 | -7/Lower Caves | Learned Factory security intel 10974 | -7/Lower Caves | Lost 3 parts (1n1u1w) 10985 | -7/Lower Caves | Spotted B-75 Beast 11011 | -7/Lower Caves | Discovered new exit (range 8) 11140 | -7/Lower Caves | Encountered a Warlord checkpoint 11331 | -7/Lower Caves | Discovered new exit (range 7) 11347 | -7/Lower Caves | Entered Data Miner 11347 | -7/Data Miner | Discovered new exit (range 6) 11372 | -7/Data Miner | Met Data Miner 11411 | -7/Data Miner | Learned location of Section 7 (-2) 11411 | -7/Data Miner | Acquired the access code to Warlord's prototype stash 11432 | -7/Data Miner | Received God Mode back door access code from Data Miner 11461 | -7/Data Miner | Entered Proximity Caves 11532 | -6/Proximity Caves | Spotter reported a threat 11571 | -6/Proximity Caves | Spotter reported a threat 11584 | -6/Proximity Caves | Spotted B-75 Beast 11608 | -6/Proximity Caves | Spotter reported a threat 11640 | -6/Proximity Caves | Core integrity fell below 50% 11698 | -6/Proximity Caves | Lost 4 parts (3n1u) 11837 | -6/Proximity Caves | Spotter reported a threat 11901 | -6/Proximity Caves | Spotter reported a threat 11919 | -6/Proximity Caves | Attracted the attention of an 0b10 checkpoint 11960 | -6/Proximity Caves | Escorted by Enhanced Grunt 11965 | -6/Proximity Caves | Discovered new exit (range 7) 11972 | -6/Proximity Caves | Learned Factory emergency access door positions 11975 | -6/Proximity Caves | Entered Factory 11975 | -6/Factory | Evolved 2 slots: Propulsion x1, Utility x1 11984 | -6/Factory | Lost 7 parts (2p3n2u) 12143 | -6/Factory | Incoming investigation squad redirected 12325 | -6/Factory | Search patrols dispatched 12407 | -6/Factory | Allied Derelicts emerged from ambush trap array 12618 | -6/Factory | Incoming investigation squad redirected 12675 | -6/Factory | Search patrols dispatched 12741 | -6/Factory | Fabricated Cld. Cesium-ion Thruster? 12930 | -6/Factory | Discovered new exit (range 6) 13025 | -6/Factory | Search patrols dispatched 13353 | -6/Factory | Discovered new exit (range 14) 13468 | -6/Factory | Identified exit to Lower Caves 13468 | -6/Factory | Identified exit to Extension 13524 | -6/Factory | Repaired Hrd. Medium Armor Plating 13569 | -6/Factory | Repaired Proton Missile Launcher 13750 | -6/Factory | Build established: Hacker-Mutant 13903 | -6/Factory | Incoming investigation squad redirected 13916 | -6/Factory | Fabricated Aerolev Unit? 13936 | -6/Factory | Discovered new exit (range 15) 14386 | -6/Factory | Repaired Mic. Nuclear Core 14807 | -6/Factory | Fabricated Imp. Hacking Suite (x1) 14965 | -6/Factory | Spotted B-75 Beast 14988 | -6/Factory | Entered Extension 15025 | -6/Extension | Rescued A7 15163 | -6/Extension | Rescued a captive Derelict 15385 | -6/Extension | Build established: Hacker-Gladiator 15597 | -6/Extension | Spotted B-75 Beast 15630 | -6/Extension | Allies destroyed B-75 Beast 15658 | -6/Extension | Spotted B-75 Beast 15666 | -6/Extension | Lost 3 allies 15675 | -6/Extension | Allies destroyed B-75 Beast 15703 | -6/Extension | Lost 4 parts (1p3n) 16023 | -6/Extension | Core integrity fell below 50% 16137 | -6/Extension | Build established: Hacker-Mutant 16488 | -6/Extension | Disrupted transfer network 16562 | -6/Extension | Build established: Commander-Mutant 16679 | -6/Extension | Discovered new exit (range 16) 16679 | -6/Extension | Discovered new exit (range 16) 16785 | -6/Extension | Disrupted transfer network 16787 | -6/Extension | Entered Cetus 16787 | -6/Cetus | Accompanied by 11 allies (A7) 16792 | -6/Cetus | Acquired a Cetus Manufacturing Module code from A7 16822 | -6/Cetus | Spotted Cetus Guard 16823 | -6/Cetus | Spotted Cetus Guard 16823 | -6/Cetus | Spotted Cetus Guard 16829 | -6/Cetus | Allies destroyed Cetus Guard 16833 | -6/Cetus | Allies destroyed Cetus Guard 16834 | -6/Cetus | Destroyed Cetus Guard 16938 | -6/Cetus | Started Cetus Manufacturing Module 16963 | -6/Cetus | Manufactured an Enhanced Grunt 16980 | -6/Cetus | Escorted A7 to Cetus Mainframe 16988 | -6/Cetus | Manufactured an Enhanced Grunt 17013 | -6/Cetus | Manufactured an Enhanced Grunt 17038 | -6/Cetus | Manufactured an Enhanced Grunt 17063 | -6/Cetus | Manufactured an Enhanced Grunt 17067 | -6/Cetus | Discovered new exit (range 15) 17097 | -6/Cetus | Spotted Cetus Guard 17098 | -6/Cetus | Spotted Cetus Guard 17101 | -6/Cetus | Spotted Cetus Guard 17102 | -6/Cetus | Spotted Cetus Guard 17104 | -6/Cetus | Allies destroyed Cetus Guard 17110 | -6/Cetus | Allies destroyed Cetus Guard 17113 | -6/Cetus | Allies destroyed Cetus Guard 17115 | -6/Cetus | Allies destroyed Cetus Guard 17123 | -6/Cetus | Discovered new exit (range 15) 17131 | -6/Cetus | Met Revision 17 17204 | -6/Cetus | Entered Archives 17204 | -6/Archives | Accompanied by 13 allies (A7) 17209 | -6/Archives | Received a hacking code to weaken MAIN.C 17274 | -6/Archives | Unable to access archive contents 17277 | -6/Archives | Discovered new exit (range 15) 17294 | -6/Archives | Lost 6 allies 17357 | -6/Archives | Discovered new exit (range 16) 17594 | -6/Archives | Discovered new exit (range 15) 17629 | -6/Archives | Entered Hub_04(d) 17629 | -6/Hub_04(d) | Accompanied by 6 allies 17739 | -6/Hub_04(d) | Build established: Hacker-Mutant 17979 | -6/Hub_04(d) | First assault squad dispatched 17999 | -6/Hub_04(d) | Incoming assault squad redirected 18116 | -6/Hub_04(d) | Discovered new exit (range 14) 18245 | -6/Hub_04(d) | Lost 3 parts (1p1n1u) 18268 | -6/Hub_04(d) | Discovered new exit (range 10) 18269 | -6/Hub_04(d) | Core integrity fell below 20% 18271 | -6/Hub_04(d) | Incoming investigation squad redirected 18283 | -6/Hub_04(d) | Incoming investigation squad redirected 18361 | -6/Hub_04(d) | Discovered new exit (range 9) 18402 | -6/Hub_04(d) | Network Hub disabled 18444 | -6/Hub_04(d) | Spotted Lightning 18444 | -6/Hub_04(d) | Spotted Lightning 18444 | -6/Hub_04(d) | Spotted Lightning 18447 | -6/Hub_04(d) | Entered Factory 18447 | -5/Factory | Evolved 2 slots: Utility x1, Weapon x1 18486 | -5/Factory | Identified exit to Factory 18511 | -5/Factory | Incoming investigation squad redirected 18691 | -5/Factory | Incoming investigation squad redirected 18715 | -5/Factory | Identified exit to Upper Caves 19127 | -5/Factory | Repaired Imp. Gravmag System 19471 | -5/Factory | Fabricated Adv. Transmission Jammer (x2) 19525 | -5/Factory | Fabricated Antigrav System? 19572 | -5/Factory | Incoming investigation squad redirected 19578 | -5/Factory | Fabricated Antigrav System (x2) 20459 | -5/Factory | Cargo convoy interrupted 20631 | -5/Factory | Entered Upper Caves 20694 | -5/Upper Caves | Spotted B-75 Beast 20869 | -5/Upper Caves | Attracted the attention of an 0b10 checkpoint 20921 | -5/Upper Caves | Build established: Hacker-Gladiator 20923 | -5/Upper Caves | Lost 4 parts (1p2n1u) 21087 | -5/Upper Caves | Discovered new exit (range 15) 21103 | -5/Upper Caves | Entered another Upper Caves area 21132 | -5/Upper Caves | Discovered new exit (range 16) 21185 | -5/Upper Caves | Entered Zhirov 21185 | -5/Zhirov | Discovered new exit (range 3) 21211 | -5/Zhirov | Met Zhirov 21242 | -5/Zhirov | Learned location of Quarantine (-2) 21242 | -5/Zhirov | Learned location of Testing (-3) 21242 | -5/Zhirov | Learned location of Command (-1) 21269 | -5/Zhirov | Zhirov requested help retrieving the SGEMP Prototype 21298 | -5/Zhirov | Found Alien Artifact 21298 | -5/Zhirov | Identified Integrated Reactor 21298 | -5/Zhirov | Installed Integrated Reactor, increased core energy generation (+10) 21402 | -5/Zhirov | Entered Proximity Caves 21409 | -4/Proximity Caves | Build established: Hacker-Mutant 21496 | -4/Proximity Caves | Lost 3 parts (1n2u) 21534 | -4/Proximity Caves | Spotter reported a threat 21652 | -4/Proximity Caves | Core integrity fell below 50% 21664 | -4/Proximity Caves | System corruption reached 10% 21686 | -4/Proximity Caves | Lost 9 parts (4n2u3w) 21766 | -4/Proximity Caves | System corruption reached 30% 21853 | -4/Proximity Caves | Spotted B-86 Titan 21913 | -4/Proximity Caves | Spotter reported a threat 21977 | -4/Proximity Caves | Spotter reported a threat 22006 | -4/Proximity Caves | Lost 3 parts (2u1w) 22019 | -4/Proximity Caves | Learned Research emergency access door positions 22050 | -4/Proximity Caves | Core integrity fell below 20% 22069 | -4/Proximity Caves | Destroyed by S-27 Virus with Autogun Last Messages --------------- 21975_ N-01 Spotter is scanning... 21977_ N-01 Spotter sends a signal. 21977_ ALERT: Unidentified potential threat approaching Complex 0b10. 21981_ System corrupted: Flexi-carbon Leg fused. 22012_ HC6ZUIUVLU#D NQES T6DGUDDJJKZ 22019_ Acquired derelict log, extracted data. Data stored: Research emergency access points. 22027_ System corrupted: Matter fused (-6). 22037_ Flexi-carbon Leg destroyed. 22038_ Coil Gun destroyed. 22043_ System corrupted: Matter fused (-10). 22043_ Med. Storage Unit destroyed. 22043_ Critical hit (Burn: +50). 22047_ Dropped Myomer Leg. 22047_ Dropped Flexi-carbon Leg. 22047_ Flexi-carbon Leg destroyed. 22048_ Dropped Angular Momentum Engine. 22055_ Flexi-carbon Leg destroyed. 22059_ System corrupted: Energy discharge (-25). Map ----- +----------------------------------------------------+ | ##?????????????# #???## ## #???????? | | ######???????????# #????# ## #????????? | | #" ""#???????????# #????# #????????? | | #???????????# #????## #????????? | | %"#???????????# #?????## ## ##????????? | | "#???????????# #??????## ### ##?????????? | | #???????##### #???????# ####?# #??????????? | | #?####### ####????# #????# #??????????? | | ##?# #????# ##?### #??????????? | | #?## #????# #?# #??????????? | | #?# ## #+##/## #????# ### ###??????????? | | ### #" # #????# ## ####?????????? | | #" ####### #?????????? | | # "" ##????????? | | ""# #" "# #????????? | | "## " # ######## ## #????????? | | """ % """# "#? #??# #?# #????????? | | ## T """# #?# ##?# #??# ##????????? | | ### #" """# ## #?# #???##?????????? | | ?# #" " """# ### #??????????????? | | ?## ## # ####" ## ??????????????? | | ??### # #????# ??????????????? | | ????#### $ #?????### ?????????????? | | ???????## ##### s ########????? ?????????????? | | ???????# ???# #????? ?????????????? | | ???????# ???# @ #????? ????????????? | | ???????## ?# ########## #????? ????????????? | | ????????? #????????? #????? ?????????????? | | ?????????# ?????????? #????? ??????????????? | | ?????????## #?????????? #????????????????????? | | ??????????## ###????????????#????????????????????? | | ???????????##????????????????????????????????????? | | ?????????????????????????????????????????????????? | | ?????????????????????????????????????????????????? | | ?????????????????????????????????????????????????? | | ?????????????????????????????????????????????????? | | ?????????????????????????????????????????????????? | | ?????????????????????????????????????????????????? | | ?????????????????????????????????????????????????? | | ?????????????????????????????????????????????????? | | ?????????????????????????????????????????????????? | | ?????????????????????????????????????????????????? | | ?????????????????????????????????????????????????? | | ?????????????????????????????????????????????????? | | ?????????????????????????????????????????????????? | | ?????????????????????????????????????????????????? | | ?????????????????????????????????????????????????? | | ?????????????????????????????????????????????????? | | ?????????????????????????????????????????????????? | | ?????????????????????????????????????????????????? | +----------------------------------------------------+ Best States ------------- Heat Dissipation 48 Energy Generation 28 Energy Capacity 600 Matter Stores 300 Matter Capacity 300 Sight Range 16 Robot Scan Range 14 Terrain Scan Density 10 Jamming Range 16 Cloak Strength 2 Additional Mass Support 12 Armor Coverage 375 Resistance: EM 15 Weapon Shielding 33 Evasion (%) 70 Targeting Accuracy 22 Melee Accuracy 8 Recoil Reduction 5 Matter Filtering 50 Particle Charging 22 Salvage Targeting 3 Offensive Hacking 38 Defensive Hacking 26 Trap Extractor Capacity 8 Item Schematics ----------------- Adv. Treads | -7/Factory | Scanalyzed Reaction Control System | -7/Factory | Extracted Imp. Melee Analysis Suite | -7/Factory | Extracted Aerolev Unit | -7/Factory | Hacked Coolant Injector | -7/Factory | Extracted Flak Gun | -7/Factory | Extracted Great Axe | -7/Factory | Extracted ECM Suite | -7/Factory | Extracted Cesium-ion Thruster | -7/Factory | Extracted Plasma Cannon | -7/Factory | Extracted Hvy. Hammer | -7/Factory | Extracted Seismic Detector | -7/Factory | Extracted Imp. Light Armor Plating | -7/Factory | Extracted Med. Storage Unit | -7/Factory | Extracted Rocket Launcher | -7/Factory | Extracted Beam Rifle | -7/Factory | Extracted Lgt. Nuclear Core | -7/Factory | Extracted Adv. Beam Cannon | -7/Factory | Extracted Armor Integrity Analyzer | -7/Factory | Extracted Microactuators | -7/Factory | Hacked Adv. Datajack | -7/Data Miner | Free Recoil Nullifier | -7/Data Miner | Free Force Field | -7/Data Miner | Free Disruptor Cannon | -7/Data Miner | Free Adv. Field Recycling Unit | -7/Data Miner | Free Arm. Medium Treads | -7/Data Miner | Free Com. Ion Cannon | -7/Data Miner | Free Thermal Defense Suite | -7/Data Miner | Free Cld. Cesium-ion Thruster | -7/Data Miner | Free Lgt. Regenerative Plating | -7/Data Miner | Free Combat Drone Bay | -7/Data Miner | Free Gravmag Array | -6/Factory | Hacked Impact Mace | -6/Factory | Hacked Power Sword | -6/Factory | Hacked Adv. Melee Analysis Suite | -6/Factory | Scanalyzed Gravity Neutralizer | -6/Factory | Scanalyzed Stasis Canceller | -6/Factory | Extracted Imp. Cryofiber Web | -6/Factory | Extracted Imp. Particle Charger | -6/Factory | Extracted Spear | -6/Factory | Extracted Lyr. Light Armor Plating | -6/Factory | Extracted Imp. Cesium-ion Thruster | -6/Factory | Extracted Imp. System Shield | -6/Factory | Hacked Imp. Hacking Suite | -6/Factory | Hacked Com. HERF Cannon | -5/Factory | Hacked Antigrav System | -5/Factory | Hacked Adv. Transmission Jammer | -5/Factory | Scanalyzed Adv. Actuator Array | -5/Factory | Hacked Antigrav Array | -5/Factory | Hacked Assault Drone Bay | -5/Zhirov | Free Exp. Heat Sink | -5/Zhirov | Free Exp. Optical Array | -5/Zhirov | Free Imp. Arc Thrower | -5/Zhirov | Free Robot Schematics ------------------ H-66 Slayer | -7/Data Miner | Free H-55 Commando | -7/Data Miner | Free A-15 Conveyor | -7/Data Miner | Free Y-54 Guardian | -7/Data Miner | Free S-27 Virus | -7/Data Miner | Free Fabricated ------------ Aerolev Unit | x1 | -7/Factory Cld. Cesium-ion Thruster | x1 | -6/Factory Aerolev Unit | x1 | -6/Factory Imp. Hacking Suite | x1 | -6/Factory Adv. Transmission Jammer | x2 | -5/Factory | Preloaded Antigrav System | x2 | -5/Factory Antigrav System | x2 | -5/Factory Alien Tech Used ----------------- Integrated Reactor Achievements -------------- Main Advantage Project G-00 Revising The Future Challenges ------------ None Game ------ Seed SuperdenseSniperBeam Manual? 0 Play Time 04:27:45 Cumulative 123.0 hours Start 2024.10.13 @ 19:44:35 End 2024.10.16 @ 00:28:11 Sessions 23 Manual Loads 0 Difficulty Rogue Special Mode None Game No. 77 Rogue 41 Adventurer 36 Explorer 0 Win Type - Total 2 Types 2/0/0/0/0/0/0/0/0 Lore% 53 Gallery% 59 Achievement% 52 Wizard Run 0 Options --------- Layout 1 ASCII 0 Keyboard 0 Movement Numpad Keybinds 0 Fullscreen 1 Font 48/Smallcaps Map View 50x35 Zoom Use 0% Tactical HUD 1 Map Filters NONE Filters NONE Steam 1 RUN: 9576467f-9b0f-4bf2-b08c-b1a005ae22af